fUSD/lending_fUSD_20250617
["ID","MTS","AMOUNT","RATE_DAILY","PERIOD"]
[366249375,1750164631924,-109.09079989,0.0001396,3]
[366249376,1750164631934,-500.0,0.00013973,2]
[366249377,1750164631943,-500.40061281,0.00013973,2]
[366249378,1750164631954,-163.77813854,0.00013973,2]
[366249379,1750164631963,-500.0,0.00013973,2]
[366249380,1750164631973,-500.0,0.00013973,2]
[366249381,1750164631983,-450.11191557,0.00013973,2]
[366249382,1750164631995,-49.88808443,0.00013973,2]
[366249384,1750164632005,-500.0,0.00013973,2]
[366249386,1750164632015,-500.0,0.00013973,2]
[366249388,1750164632025,-255.90916427,0.00013973,2]
[366249390,1750164632037,-244.09083573,0.00013973,2]
[366249392,1750164632046,-500.0,0.00013973,2]
[366249394,1750164632056,-157.6294297,0.00013973,2]
[366249396,1750164632065,-161.41952386,0.00013973,2]
[366249398,1750164632074,-187.53348132,0.00013973,2]
[366249400,1750164632085,-189.52659539,0.00013973,2]
[366249402,1750164632097,-310.47340461,0.00013973,2]
[366249404,1750164632111,-500.0,0.00013973,2]
[366249407,1750164632121,-500.0,0.00013973,2]
[366249408,1750164632130,-189.67679799,0.00013973,2]
[366249411,1750164632143,-310.32320201,0.00013973,2]
[366249412,1750164632152,-359.12499857,0.00013973,2]
[366249413,1750164632162,-500.0,0.00013973,2]
[366249415,1750164632172,-500.0,0.00013973,2]
[366249417,1750164632182,-502.13487512,0.00013973,2]
[366249419,1750164632192,-157.5218086,0.00013973,2]
[366249421,1750164632202,-150.42,0.0001399,2]
[366249422,1750164632212,-150.42,0.0001399,2]
[366249424,1750164632221,-151.0,0.00013992,2]
[366249426,1750164632231,-151.0,0.00013992,2]
[366249428,1750164632240,-151.0,0.00013992,2]
[366249430,1750164632250,-151.0,0.00013992,2]
[366249432,1750164632259,-151.0,0.00013992,2]
[366249434,1750164632279,-151.0,0.00013992,2]
[366249436,1750164632294,-151.0,0.00013992,2]
[366249438,1750164632303,-151.0,0.00013992,2]
[366249440,1750164632314,-151.0,0.00013992,2]
[366249442,1750164632324,-151.0,0.00013992,2]
[366249444,1750164632333,-151.0,0.00013992,2]
[366249446,1750164632343,-151.0,0.00013992,2]
[366249448,1750164632352,-151.0,0.00013992,2]
[366249450,1750164632362,-158.71823223,0.00013992,2]
[366249452,1750164632372,-661.0,0.00013996,2]
[366249454,1750164632381,-555.77980348,0.00013999,2]
[366249456,1750164632391,-306.2528842,0.00013999,2]
[366249458,1750164632400,-439.22170744,0.00013999,2]
[366249460,1750164632410,-1152.24699957,0.00013999,2]
[366249462,1750164632420,-14790.6079328,0.00014,2]
[366249464,1750164632431,-446.43026503,0.00014,2]
[366249467,1750164632452,-308.79,0.00014,2]
[366249470,1750164632463,-2896.07326788,0.00014,2]
[366249472,1750164632474,-4074.16453589,0.00014,2]
[366249474,1750164632486,-1555.3552193,0.00014,2]
[366249476,1750164632497,-6353.00952,0.00014,2]
[366249479,1750164632509,-2196.02515756,0.00014,2]
[366249482,1750164632536,-545.44642781,0.00014,2]
[366249485,1750164632548,-501.84968142,0.00014,2]
[366249487,1750164632559,-1704.831098,0.00014,2]
[366249490,1750164632584,-546.49932388,0.00014,2]
[366249493,1750164632596,-982.5874323,0.00014,2]
[366249496,1750164632620,-3751.56464939,0.00014,2]
[366249498,1750164632631,-2609.49592439,0.00014,2]
[366249500,1750164632643,-1262.99999114,0.00014,2]
[366249504,1750164632668,-2330.24577903,0.00014,2]
[366249506,1750164632679,-1928.30043158,0.00014,2]
[366249508,1750164632691,-109230.0,0.00014,2]
[366249949,1750164637489,-488.456,0.00014,2]
[366249951,1750164637500,-2113.6,0.00014,2]
[366249956,1750164637541,-256.31355981,0.00014,2]
[366249958,1750164637552,-816.68230444,0.00014,2]
[366249962,1750164637584,-867.48138898,0.00014,2]
[366249965,1750164637609,-322.0748122,0.00014,2]
[366249968,1750164637623,-4137.34557479,0.00014,2]
[366249972,1750164637656,-983.76745006,0.00014,2]
[366249974,1750164637667,-21382.8668396,0.00014,2]
[366249976,1750164637678,-230006.70712234,0.00014,2]
[366249979,1750164637690,-1965.79004534,0.00014,2]
[366249982,1750164637713,-4806.02902283,0.00014,2]
[366249994,1750164637822,-623851.63662647,0.00014,2]
[366249996,1750164637833,-250.0,0.00014,2]
[366249998,1750164637843,-250.0,0.00014,2]
[366250000,1750164637853,-250.0,0.00014,2]
[366250002,1750164637863,-250.0,0.00014,2]
[366250004,1750164637872,-250.0,0.00014,2]
[366250006,1750164637883,-250.0,0.00014,2]
[366250008,1750164637893,-250.0,0.00014,2]
[366250010,1750164637903,-250.0,0.00014,2]
[366250012,1750164637914,-250.0,0.00014,2]
[366250014,1750164637923,-250.0,0.00014,2]
[366250016,1750164637933,-301.13,0.00014,2]
[366250017,1750164637944,-250.0,0.00014,2]
[366250019,1750164637954,-250.0,0.00014,2]
[366250021,1750164637965,-250.0,0.00014,2]
[366250023,1750164637975,-280.3,0.00014,2]
[366250025,1750164637985,-1145.75726007,0.00014,2]
[366250027,1750164637994,-200.0,0.00014,2]
[366250030,1750164638004,-150.0,0.00014,2]
[366250032,1750164638014,-150.0,0.00014,2]
[366250036,1750164638024,-150.0,0.00014,2]
[366250038,1750164638033,-150.0,0.00014,2]
[366250040,1750164638043,-150.0,0.00014,2]
[366250042,1750164638053,-150.0,0.00014,2]
[366250044,1750164638062,-150.0,0.00014,2]
[366250046,1750164638074,-150.0,0.00014,2]
[366250048,1750164638083,-150.0,0.00014,2]
[366250050,1750164638094,-293.79030797,0.00014,2]
[366250052,1750164638104,-180.0,0.00014,2]
[366250076,1750164638315,-180.0,0.00014,2]
[366250079,1750164638358,-659.5952,0.00014,2]
[366250081,1750164638368,-641.62170785,0.00014,2]
[366250083,1750164638378,-500.0,0.00014,2]
[366250085,1750164638388,-500.0,0.00014,2]
[366250087,1750164638400,-500.0,0.00014,2]
[366250089,1750164638411,-178.3,0.00014,2]
[366250091,1750164638420,-177.0,0.00014,2]
[366250093,1750164638430,-177.0,0.00014,3]
[366250095,1750164638440,-177.80236609,0.00014017,2]
[366250097,1750164638450,-150.42,0.00014017,2]
[366250099,1750164638460,-4216.805443,0.00014018,2]
[366250101,1750164638469,-133724.2011338,0.00014027,2]
[366250103,1750164638480,-1000.0,0.00014038,2]
[366250105,1750164638490,-151.0,0.00014047,2]
[366250107,1750164638501,-151.0,0.00014102,2]
[366250109,1750164638510,-150.42,0.00014116,2]
[366250111,1750164638520,-151679.23949646,0.00014126,2]
[366250113,1750164638529,-865.0,0.00014136,2]
[366250115,1750164638539,-200.0,0.0001414,2]
[366250117,1750164638549,-364.0,0.00014144,2]
[366250119,1750164638559,-151.0,0.00014157,2]
[366250121,1750164638568,-500.0,0.00014164,2]
[366250123,1750164638578,-500.0,0.00014164,2]
[366250125,1750164638587,-180.21587915,0.00014178,2]
[366250128,1750164638602,-930.0,0.00014202,2]
[366250130,1750164638611,-151.0,0.00014212,2]
[366250131,1750164638620,-682.97685615,0.00014262,2]
[366250133,1750164638630,-151.0,0.00014267,2]
[366250136,1750164638640,-200.0,0.00014281,2]
[366250138,1750164638650,-151.0,0.00014322,2]
[366250140,1750164638661,-658.82213388,0.0001437,2]
[366250142,1750164638670,-151.0,0.00014377,2]
[366250144,1750164638680,-3611.8102259,0.00014382,2]
[366250146,1750164638689,-162.01885445,0.00014387,2]
[366250148,1750164638700,-200.0,0.00014424,2]
[366250150,1750164638710,-472.0,0.00014425,2]
[366250152,1750164638720,-499.0,0.00014425,2]
[366250154,1750164638731,-356.0,0.00014425,2]
[366250155,1750164638741,-151.0,0.00014432,2]
[366250156,1750164638751,-208.0,0.00014439,4]
[366250157,1750164638764,-151.0,0.00014487,2]
[366250158,1750164638774,-975.0,0.00014497,2]
[366250159,1750164638784,-163.0,0.00014497,2]
[366250160,1750164638794,-150.0,0.00014499,2]
[366250161,1750164638804,-150.0,0.00014499,2]
[366250162,1750164638814,-150.0,0.00014499,2]
[366250163,1750164638824,-150.0,0.00014499,2]
[366250164,1750164638834,-150.0,0.00014499,2]
[366250165,1750164638844,-150.0,0.00014499,2]
[366250167,1750164638853,-150.42,0.00014505,2]
[366250169,1750164638863,-500.0,0.00014521,2]
[366250171,1750164638872,-1000.0,0.00014521,2]
[366250173,1750164638882,-502.9864325,0.00014521,2]
[366250175,1750164638892,-891.82097255,0.00014521,2]
[366250177,1750164638901,-313.59491968,0.00014521,2]
[366250179,1750164638911,-500.0,0.00014521,2]
[366250181,1750164638922,-500.0,0.00014521,2]
[366250183,1750164638931,-1000.0,0.00014521,2]
[366250185,1750164638941,-1000.0,0.00014521,2]
[366250187,1750164638951,-500.0,0.00014521,2]
[366250189,1750164638960,-1000.0,0.00014521,2]
[366250191,1750164638970,-1000.0,0.00014521,2]
[366250193,1750164638979,-500.0,0.00014521,2]
[366250195,1750164638989,-807.76663066,0.00014526,2]
[366250197,1750164638999,-300.0,0.00014538,2]
[366250199,1750164639009,-250.0,0.00014538,2]
[366250202,1750164639018,-300.0,0.00014538,2]
[366250204,1750164639028,-262.07615835,0.00014542,2]
[366250205,1750164639038,-4121.69623632,0.00014546,2]
[366250208,1750164639047,-972.42950438,0.00014548,2]
[366250210,1750164639057,-1000.0,0.00014548,2]
[366250212,1750164639067,-200.0,0.00014568,2]
[366250213,1750164639076,-173.0,0.00014568,2]
[366250216,1750164639086,-504.7917563,0.00014585,2]
[366250218,1750164639096,-416.48,0.00014586,2]
[366250220,1750164639109,-633.41519915,0.00014593,2]
[366250222,1750164639119,-828.13,0.00014607,2]
[366250224,1750164639129,-682.97685615,0.00014624,2]
[366250226,1750164639138,-6469.98545452,0.00014667,2]
[366250228,1750164639149,-23900.0,0.00014692,2]
[366250230,1750164639159,-1000.0,0.00014712,2]
[366250232,1750164639168,-253.0,0.00014712,2]
[366250234,1750164639178,-209.0,0.0001472,2]
[366250236,1750164639188,-250.0,0.00014793,2]
[366250238,1750164639198,-150.42,0.00014812,2]
[366250240,1750164639207,-22198.86535688,0.00014822,2]
[366250242,1750164639216,-600.0,0.0001485,4]
[366250244,1750164639226,-209.0,0.0001485,2]
[366250246,1750164639235,-171.27,0.00014869,2]
[366250248,1750164639244,-162.01885445,0.00014873,2]
[366250250,1750164639254,-1000.0,0.00014874,2]
[366250252,1750164639264,-1300.0,0.000149,5]
[366250254,1750164639273,-150.0,0.00014901,2]
[366250256,1750164639283,-208.0,0.00014919,4]
[366250258,1750164639293,-209.0,0.0001497,2]
[366250260,1750164639302,-682.97685615,0.00014987,2]
[366250261,1750164639311,-1000.0,0.00014999,2]
[366250263,1750164639321,-250.0,0.00015,2]
[366250265,1750164639331,-180.45,0.00015,2]
[366250267,1750164639341,-157.27,0.00015,2]
[366250269,1750164639350,-255.0,0.00015025,2]
[366250271,1750164639360,-1500.0,0.00015068,2]
[366250273,1750164639370,-500.0,0.00015068,2]
[366250275,1750164639380,-1500.0,0.00015068,2]
[366250277,1750164639390,-1500.0,0.00015068,2]
[366250280,1750164639401,-1000.0,0.00015083,2]
[366250281,1750164639410,-209.0,0.000151,2]
[366250283,1750164639420,-1000.0,0.00015118,2]
[366250285,1750164639430,-300.0,0.00015124,2]
[366250287,1750164639439,-22198.86535688,0.0001513,2]
[366250289,1750164639449,-1000.0,0.0001514,2]
[366250293,1750164639475,-807.76663066,0.00015151,2]
[366250296,1750164639493,-209.0,0.0001523,2]
[366250299,1750164639516,-593.63922972,0.00015254,2]
[366250303,1750164639538,-504.7917563,0.0001527,2]
[366250305,1750164639555,-633.41519915,0.00015285,2]
[366250309,1750164639579,-1680.0,0.00015289,2]
[366250312,1750164639601,-150.0,0.00015304,2]
[366250315,1750164639625,-791.15371386,0.00015319,2]
[366250319,1750164639646,-1290.0,0.00015329,2]
[366250322,1750164639667,-682.97685615,0.00015349,2]
[366250325,1750164639687,-209.0,0.0001535,2]
[366250327,1750164639703,-162.01885445,0.0001536,2]
[366250330,1750164639725,-208.0,0.00015398,5]
[366250333,1750164639739,-168.0,0.00015413,2]
[366250336,1750164639762,-150.42,0.00015427,2]
[366250339,1750164639777,-22198.86535688,0.00015437,2]
[366250342,1750164639794,-1000.0,0.00015467,2]
[366250345,1750164639818,-151.0,0.00015467,2]
[366250348,1750164639839,-1957.856,0.00015467,2]
[366250351,1750164639857,-1000.0,0.00015467,2]
[366250354,1750164639875,-1000.0,0.00015467,2]
[366250357,1750164639894,-1000.0,0.00015467,2]
[366250360,1750164639912,-1120.11169148,0.00015467,2]
[366250363,1750164639930,-1000.0,0.00015467,2]
[366250366,1750164639948,-500.0,0.00015467,2]
[366250369,1750164639966,-1000.0,0.00015467,2]
[366250372,1750164639984,-500.0,0.00015467,2]
[366250375,1750164640002,-1000.0,0.00015467,2]
[366250377,1750164640020,-500.0,0.00015467,2]
[366250380,1750164640038,-1000.0,0.00015467,2]
[366250383,1750164640055,-456.79519731,0.00015467,2]
[366250386,1750164640072,-441.7110346,0.00015467,2]
[366250389,1750164640089,-1000.0,0.00015467,2]
[366250392,1750164640107,-151.0,0.00015467,2]
[366250395,1750164640127,-1000.0,0.00015467,2]
[366250398,1750164640145,-151.0,0.00015467,2]
[366250400,1750164640162,-1000.0,0.00015467,2]
[366250403,1750164640180,-1000.0,0.00015467,2]
[366250406,1750164640197,-1000.0,0.00015467,2]
[366250409,1750164640214,-700.0,0.00015467,2]
[366250412,1750164640232,-1000.0,0.00015467,2]
[366250414,1750164640249,-700.0,0.00015467,2]
[366250415,1750164640267,-492.50626383,0.00015467,2]
[366250416,1750164640285,-700.0,0.00015467,2]
[366250417,1750164640302,-700.0,0.00015467,2]
[366250418,1750164640318,-700.0,0.00015467,2]
[366250419,1750164640337,-700.0,0.00015467,2]
[366250420,1750164640356,-700.0,0.00015467,2]
[366250421,1750164640373,-700.0,0.00015467,2]
[366250423,1750164640392,-700.0,0.00015467,2]
[366250425,1750164640410,-700.0,0.00015467,2]
[366250428,1750164640426,-700.0,0.00015467,2]
[366250431,1750164640444,-700.0,0.00015467,2]
[366250434,1750164640462,-700.0,0.00015467,2]
[366250436,1750164640481,-700.0,0.00015467,2]
[366250439,1750164640499,-700.0,0.00015467,2]
[366250442,1750164640516,-700.0,0.00015467,2]
[366250445,1750164640534,-700.0,0.00015467,2]
[366250447,1750164640550,-700.0,0.00015467,2]
[366250450,1750164640570,-207.4,0.00015467,2]
[366250453,1750164640588,-700.0,0.00015467,2]
[366250456,1750164640607,-700.0,0.00015467,2]
[366250459,1750164640624,-700.0,0.00015467,2]
[366250462,1750164640643,-700.0,0.00015467,2]
[366250465,1750164640660,-700.0,0.00015467,2]
[366250468,1750164640677,-700.0,0.00015467,2]
[366250470,1750164640695,-700.0,0.00015467,2]
[366250473,1750164640714,-700.0,0.00015467,2]
[366250476,1750164640731,-151.0,0.00015467,2]
[366250479,1750164640749,-700.0,0.00015467,2]
[366250482,1750164640767,-700.0,0.00015467,2]
[366250485,1750164640785,-151.0,0.00015467,2]
[366250488,1750164640803,-700.0,0.00015467,2]
[366250490,1750164640819,-151.0,0.00015467,2]
[366250493,1750164640837,-584.24569407,0.00015467,2]
[366250496,1750164640854,-151.0,0.00015467,2]
[366250499,1750164640871,-151.0,0.00015467,2]
[366250501,1750164640889,-151.0,0.00015467,2]
[366250504,1750164640909,-151.0,0.00015467,2]
[366250507,1750164640926,-151.0,0.00015467,2]
[366250510,1750164640943,-151.0,0.00015467,2]
[366250512,1750164640961,-151.0,0.00015467,2]
[366250515,1750164640979,-151.0,0.00015467,2]
[366250518,1750164640996,-151.0,0.00015467,2]
[366250521,1750164641013,-151.0,0.00015467,2]
[366250523,1750164641029,-151.0,0.00015467,2]
[366250526,1750164641046,-151.0,0.00015467,2]
[366250529,1750164641065,-209.0,0.0001548,2]
[366250532,1750164641084,-150.44,0.00015485,2]
[366250535,1750164641103,-2030.296672,0.00015522,2]
[366250538,1750164641129,-2105.41764886,0.00015577,2]
[366250541,1750164641148,-169.0,0.00015592,2]
[366250544,1750164641167,-1000.0,0.00015594,2]
[366250546,1750164641184,-9264.68941332,0.000156,2]
[366250549,1750164641201,-9264.68941313,0.000156,2]
[366250552,1750164641219,-9264.68941313,0.000156,2]
[366250555,1750164641237,-9264.68941313,0.000156,2]
[366250558,1750164641255,-9264.68941313,0.000156,2]
[366250561,1750164641273,-9264.68941313,0.000156,2]
[366250563,1750164641290,-9264.68941313,0.000156,2]
[366250566,1750164641308,-9264.68941313,0.000156,2]
[366250569,1750164641328,-9264.68941313,0.000156,2]
[366250571,1750164641339,-150.42,0.00015606,2]
[366250573,1750164641349,-1000.0,0.00015608,2]
[366250575,1750164641359,-209.0,0.0001561,2]
[366250577,1750164641368,-2000.0,0.00015616,2]
[366250579,1750164641378,-2000.0,0.00015616,2]
[366250581,1750164641388,-2000.0,0.00015616,2]
[366250583,1750164641398,-2183.31810187,0.00015632,2]
[366250585,1750164641407,-1000.0,0.0001568,2]
[366250587,1750164641417,-2264.10087164,0.00015687,2]
[366250589,1750164641427,-150.0,0.00015707,2]
[366250591,1750164641437,-682.97685615,0.00015711,2]
[366250625,1750164641884,-169.0,0.00015728,2]
[366250630,1750164641920,-209.0,0.0001573,2]
[366250634,1750164641946,-2347.87260389,0.00015742,2]
[366250636,1750164641956,-22198.86535688,0.00015745,2]
[366250638,1750164641965,-30170.38119632,0.00015745,2]
[366250640,1750164641975,-9264.68941313,0.00015762,2]
[366250642,1750164641984,-807.76663066,0.00015777,2]
[366250644,1750164641993,-1000.0,0.00015779,2]
[366250646,1750164642004,-167.05,0.00015784,2]
[366250648,1750164642013,-2434.74389024,0.00015797,2]
[366250650,1750164642023,-180.0,0.000158,2]
[366250652,1750164642032,-180.0,0.000158,2]
[366250654,1750164642041,-180.0,0.000158,2]
[366250656,1750164642052,-180.0,0.000158,2]
[366250658,1750164642062,-180.0,0.000158,2]
[366250660,1750164642076,-180.0,0.000158,2]
[366250662,1750164642085,-180.0,0.000158,2]
[366250664,1750164642096,-162.01885445,0.00015846,2]
[366250666,1750164642106,-172.51,0.00015848,2]
[366250668,1750164642119,-2524.82941417,0.00015852,2]
[366250670,1750164642129,-200.0,0.00015854,2]
[366250672,1750164642138,-209.0,0.0001586,2]
[366250674,1750164642148,-1079.0,0.00015874,2]
[366250676,1750164642158,-208.0,0.00015878,6]
[366250678,1750164642167,-393.71387229,0.000159,2]
[366250680,1750164642177,-393.71387229,0.000159,2]
[366250682,1750164642186,-393.71387229,0.000159,2]
[366250684,1750164642195,-393.71387229,0.000159,2]
[366250686,1750164642205,-1700.0,0.000159,5]
[366250688,1750164642215,-393.71387229,0.000159,2]
[366250690,1750164642224,-393.71387229,0.000159,2]
[366250692,1750164642234,-393.71387229,0.000159,2]
[366250694,1750164642243,-393.71387229,0.000159,2]
[366250696,1750164642254,-393.71387229,0.000159,2]
[366250698,1750164642263,-393.71387229,0.000159,2]
[366250700,1750164642273,-393.71387229,0.000159,2]
[366250702,1750164642283,-393.71387229,0.000159,2]
[366250704,1750164642292,-393.71387229,0.000159,2]
[366250706,1750164642302,-393.71387229,0.000159,2]
[366250708,1750164642312,-1000.0,0.00015905,2]
[366250710,1750164642325,-2618.2481025,0.00015907,2]
[366250712,1750164642335,-1000.0,0.00015936,2]
[366250714,1750164642345,-393.71387229,0.00015953,2]
[366250716,1750164642356,-504.7917563,0.00015954,2]
[366250718,1750164642367,-2715.12328229,0.00015962,2]
[366250720,1750164642377,-9264.68941313,0.00015969,2]
[366250722,1750164642388,-633.41519915,0.00015978,2]
[366250724,1750164642398,-209.0,0.0001599,2]
[366250726,1750164642408,-150.0,0.00015991,2]
[366250728,1750164642418,-3065.19,0.00016,2]
[366250730,1750164642428,-3065.19,0.00016,2]
[366250732,1750164642438,-3065.19,0.00016,2]
[366250734,1750164642448,-3065.19,0.00016,2]
[366250736,1750164642458,-3065.19,0.00016,2]
[366250738,1750164642468,-1000.0,0.0001601,2]
[366250741,1750164642484,-151.5285271,0.00016015,2]
[366250743,1750164642495,-153.1006901,0.00016015,2]
[366250745,1750164642505,-2815.58284374,0.00016017,2]
[366250747,1750164642515,-150.42,0.00016042,2]
[366250749,1750164642526,-150.0,0.00016045,2]
[366250753,1750164642536,-22198.86535688,0.00016052,2]
[366250755,1750164642546,-30170.38119632,0.00016052,2]
[366250757,1750164642556,-1467.867156,0.0001606,2]
[366250759,1750164642566,-1055.89595933,0.0001606,2]
[366250761,1750164642579,-1042.17228147,0.0001606,2]
[366250763,1750164642589,-1091.69623822,0.0001606,2]
[366250766,1750164642599,-1133.41681967,0.0001606,2]
[366250767,1750164642609,-1174.72768355,0.0001606,2]
[366250771,1750164642620,-2919.75940895,0.00016072,2]
[366250773,1750164642629,-682.97685615,0.00016073,2]
[366250775,1750164642640,-393.71387229,0.00016081,2]
[366250777,1750164642650,-150.0,0.00016099,2]
[366250779,1750164642661,-1000.0,0.000161,2]
[366250781,1750164642671,-150.0,0.0001611,2]
[366250783,1750164642680,-150.0,0.0001611,2]
[366250785,1750164642691,-150.0,0.0001611,2]
[366250787,1750164642702,-150.0,0.0001611,2]
[366250789,1750164642712,-150.0,0.0001611,2]
[366250791,1750164642723,-209.0,0.0001611,2]
[366250793,1750164642734,-3027.79050709,0.00016127,2]
[366250795,1750164642744,-946.0,0.00016127,2]
[366250797,1750164642756,-3333.0,0.00016127,2]
[366250799,1750164642767,-637.0,0.00016127,2]
[366250801,1750164642778,-802.0,0.00016127,2]
[366250804,1750164642789,-1160.0,0.00016127,2]
[366250806,1750164642799,-558.0,0.00016127,2]
[366250808,1750164642809,-928.0,0.00016127,2]
[366250809,1750164642819,-590.0,0.00016127,2]
[366250810,1750164642834,-2003.0,0.00016127,2]
[366250811,1750164642844,-1277.0,0.00016127,2]
[366250812,1750164642855,-1674.0,0.00016127,2]
[366250813,1750164642865,-7112.0,0.00016127,2]
[366250814,1750164642876,-4091.0,0.00016127,2]
[366250815,1750164642886,-155.0,0.00016127,2]
[366250816,1750164642897,-884.0,0.00016127,2]
[366250817,1750164642907,-168.0,0.00016157,2]
[366250818,1750164642923,-2500.0,0.00016164,2]
[366250819,1750164642934,-2500.0,0.00016164,2]
[366250820,1750164642944,-2500.0,0.00016164,2]
[366250821,1750164642954,-9264.68941313,0.00016176,2]
[366250822,1750164642965,-3139.81875585,0.00016182,2]
[366250823,1750164642975,-354.83,0.00016192,2]
[366250824,1750164642985,-393.71387229,0.0001621,2]
[366250825,1750164642996,-828.13,0.0001623,2]
[366250826,1750164643006,-400.0,0.00016231,2]
[366250827,1750164643016,-3255.99204981,0.00016237,2]
[366250828,1750164643026,-209.0,0.0001624,2]
[366250829,1750164643036,-150.42,0.0001624,2]
[366250831,1750164643046,-150.42,0.0001624,2]
[366250833,1750164643056,-168.0,0.00016242,2]
[366250836,1750164643067,-433.0,0.00016248,2]
[366250838,1750164643080,-220689.4801221,0.0001625,2]
[366250841,1750164643090,-2000.0,0.00016256,2]
[366250844,1750164643100,-150.0,0.00016256,2]
[366250846,1750164643115,-2000.0,0.00016257,2]
[366250847,1750164643125,-2000.0,0.00016257,2]
[366250848,1750164643135,-500.0,0.00016257,2]
[366250850,1750164643145,-200.0,0.00016257,2]
[366250851,1750164643157,-1000.0,0.00016261,2]
[366250852,1750164643167,-200.0,0.0001627,2]
[366250853,1750164643178,-218.58955708,0.00016278,2]
[366250854,1750164643190,-218.58955708,0.00016283,2]
[366250855,1750164643201,-218.58955708,0.00016284,2]
[366250856,1750164643211,-200.0,0.00016286,2]
[366250857,1750164643222,-200.0,0.00016291,2]
[366250858,1750164643232,-3376.46375566,0.00016292,2]
[366250859,1750164643242,-1000.0,0.00016298,2]
[366250860,1750164643253,-177.0,0.000163,3]
[366250861,1750164643263,-177.0,0.000163,3]
[366250862,1750164643273,-177.0,0.000163,3]
[366250863,1750164643283,-177.0,0.000163,2]
[366250864,1750164643294,-1000.0,0.000163,2]
[366250865,1750164643305,-200.0,0.00016305,2]
[366250866,1750164643315,-200.0,0.00016312,2]
[366250867,1750164643327,-218.58955708,0.00016316,2]
[366250868,1750164643338,-157.27,0.00016318,2]
[366250869,1750164643348,-200.0,0.00016318,2]
[366250870,1750164643363,-162.01885445,0.00016333,2]
[366250871,1750164643374,-200.0,0.00016335,2]
[366250872,1750164643384,-393.71387229,0.00016338,2]
[366250873,1750164643395,-1000.0,0.00016347,2]
[366250874,1750164643405,-3501.39291462,0.00016347,2]
[366250875,1750164643416,-200.0,0.00016348,2]
[366250876,1750164643426,-151.0,0.00016349,2]
[366250877,1750164643437,-151.0,0.00016349,2]
[366250878,1750164643447,-151.0,0.00016349,2]
[366250879,1750164643458,-151.0,0.00016349,2]
[366250880,1750164643468,-1198.0,0.00016349,2]
[366250881,1750164643479,-151.0,0.00016349,2]
[366250882,1750164643490,-1198.0,0.00016349,2]
[366250883,1750164643500,-151.0,0.00016349,2]
[366250884,1750164643510,-1198.0,0.00016349,2]
[366250885,1750164643521,-151.0,0.00016349,2]
[366250886,1750164643532,-1198.0,0.00016349,2]
[366250887,1750164643543,-151.0,0.00016349,2]
[366250889,1750164643554,-634.1542531,0.00016349,2]
[366250891,1750164643565,-151.0,0.00016349,2]
[366250893,1750164643579,-151.0,0.00016349,2]
[366250895,1750164643590,-151.0,0.00016349,2]
[366250897,1750164643601,-151.0,0.00016349,2]
[366250899,1750164643612,-151.0,0.00016349,2]
[366250902,1750164643623,-151.0,0.00016349,2]
[366250904,1750164643634,-151.0,0.00016349,2]
[366250906,1750164643644,-151.0,0.00016349,2]
[366250908,1750164643655,-151.0,0.00016349,2]
[366250910,1750164643666,-151.0,0.00016349,2]
[366250912,1750164643676,-151.0,0.00016349,2]